{"text_format":"2","workbook":"xlsx","n_sheets":1,"sheets":["Sheet1"],"not_rendered":{"charts":0,"images":0,"macros":0,"external_links":0,"defined_names":0,"comments":0,"pivot_tables":0},"unopened":[],"bounds":{"document_bytes":16777216,"sheet_cells":100000,"run_cost":"one","rows_first":2000,"rows_last":500,"rows_between":2000,"halvings":0,"cell_chars":16384,"cell_head_chars":4096},"cells_cut":0,"cells_raw":0,"read":"whole","date_system":"1900"}

{"sheet":"Sheet1","index":0,"n_rows":45,"n_cols":21,"rows_kept":45,"cut":false,"hidden":false,"merged":[]}
["OTO?","Street","FULL\nADDRESS","ZIPCODE","PROJECT\nNAME","DESCRIPTION","ADU?","PLANNER","SRC","CDD","ZA","DRC","PC","CC","FINAL\nAPPROVAL\nDATE","NOTES","Submittal\nDate","STATUS\nUPDATED\n(DATE ONLY)","APPLICANT\nNAME","APPL. EMAIL","APPLICANT\nPHONE"]
["OTO","Batavia","392 N Batavia\nSt",92868,"Liu ADU","Construct new 999\nsquare foot detached\nADU with two\nbedrooms and four\nbathrooms, exterior\nporch, and laundry\nenclosure.",{"$f":"IF((ISNUMBER(SEARCH(\"ADU\",F2)))=TRUE,\"ADU\",\"OTHER\")","v":"ADU"},"Amber\nGregg",null,"Pending",{"$nulls":6},"2023-11-15",null,"Yulong Liu","maye760824@gmail.com","(949) 668-\n3167"]
["OTO","Cambridge","348 N\nCambridge St",92866,"385\nCambridge\nLLC ADU","Convert a portion of an\nexisting detached\ngarage to construct an\n800 square foot ADU\nwith two bedrooms and\ntwo bathrooms and\nattached patio cover.","ADU","Ani\nMnatsakan\nyan",null,"Pending",{"$nulls":6},"2023-10-11",null,"385\nCambridge\nLLC","david@realestate1428.com","(714) 401-\n8200"]
["OTO","Cambridge","356 N\nCambridge St",92866,"Gries ADU","New 799 square foot\nADU with two\nbedrooms and one\nbathroom attached to\nan existing detached\naccessory structure that\nwill be converted into a\ngarage in the Historic\nDistrict.","ADU","Ani\nMnatsakan\nyan",null,"Pending",{"$nulls":6},"2023-08-17",null,"Louis Gries","gries9@gmail.com","(949) 612-\n7518"]
["OTO","Cambridge","460 S\nCambridge St",92866,"McGowan\nADU","Convert detached\ngarage into 412 square\nfoot studio ADU with\none bathroom in the\nOld Towne Historic\nDistrict.","ADU","Amber\nGregg",null,"Pending",{"$nulls":6},"2023-10-16",null,"Craig\nMcGowan","cpmcgowan@gmail.com","(208) 874-\n7818"]
["OTO","Center","267 N Center\nSt",92866,"Meyer ADU","New 846 square foot\nADU with attached 149\nsquare foot bicycle\ngarage in the Old Towne\nHistoric District","ADU","Ani\nMnatsakan\nyan",null,"Pending",{"$nulls":6},"2023-06-14",null,"Michelle\nRunyan","michelle@plansbybrian.com","(951) 520-\n7601"]
["OTO","Chapman","208 E\nChapman Ave",92866,"Centro\nOrange","Request for an ABC\nType?? License at an\nItalian Restaurant and\nCafe.","OTHER","Ani\nMnatsakan\nyan",{"$nulls":4},"Pending",null,null,"PC Hearing\nDate:\n11/6/23","2023-02-09","2023-05-17","Enrico\nPozzvoli","enrico@pozzoliwinery.com","(714) 915-\n7450"]
["OTO","Chapman","212 E\nChapman Ave",92866,"R & B Tea\nand Fusion\nRestaurant","Request to install wall\nsigns for new restaurant","OTHER","Ani\nMnatsakan\nyan",null,null,null,"Pending",null,null,null,"DRC Date:\n12/6/23","2023-05-25","2023-07-28","Daniel\nHoang","bluesignsmfg@gmail.com","(714) 724-\n1443"]
["OTO","Chapman","407 E\nChapman Ave",92866,"Dish\nWireless","Proposed Dish Wireless\nfacility","OTHER","Ani\nMnatsakan\nyan",null,null,null,"Pending",null,null,null,"DRC Date:\n12/6/23","2022-12-08","2023-05-17","Brian De La\nRee","bdelaree@core.us.com","(323) 273-\n2199"]
["OTO","Chapman","611 W\nChapman Ave",92868,"Cedarhouse","A request to operate a\nreligious intstitution and\ncoffee house within an\nexisting two-story\nVictorian structure,\nincluding interior and\nexterior modifications in\nthe Histroric District.","OTHER","Ani\nMnatsakan\nyan",{"$nulls":5},"Pending",null,null,"2023-08-21",null,"Peter\nShambrook","pete@cedarhouseoc.com","(714) 454-\n6377"]
["OTO","Chapman","616 W\nChapman Ave",92868,"Bonjour Bed\n& Breakfast","Convert existing 1,111\nsquare foot single family\nresidence into a bed\nand breakfast in the Old\nTowne Historic District.","OTHER","Ani\nMnatsakan\nyan",{"$nulls":8},"2023-09-07",null,"Ahmed\nJoseph\nMahmoud","joseph.cscp@gmail.com","(714) 204-\n5649"]
["OTO","Chapman","730 W\nChapman Ave",92866,"Clark\nStation","Construction of 3,642 SF\nmulti-tenant retail\nbuilding with site\nimprovements.","OTHER","Ani\nMnatsakan\nyan",null,null,null,"Pending",{"$nulls":4},"2022-11-14",null,"Leason\nPomeroy III,\nLP3\nArchitecture\n\n,","lp3arch@aol.com","(714) 771-\n8400"]
["OTO","Chapman","814 W\nChapman Ave",92868,"Chapman +\nClark","A proposal to remodel a\nnon-contributing\nbuilding into four\noffice/retail suites","OTHER","Historic\nPreservatio\nn","Pending",null,null,"Pending",null,null,null,"On hold",null,"2022-03-28","Myrna J\nLivingston\nTrust",null,"(714) 536-\n8764"]
["OTO","Clark","365 N Clark St",92868,"Kearl ADU","New attached 745 SF\nADU in the front\nsetback and garage\nconverison to a 231 SF a\nJADU.","ADU","Ani\nMnatsakan\nyan",null,"Pending",{"$nulls":6},"2023-01-13","2023-02-10","Brian Scott","brian@plansbybrian.com","(888) 271-\n7526"]
["OTO","Culver","512 W Culver\nAve",92868,"Sanchez\nAddition\nand Garage","New 480 square foot\naddition to existing\nresidence and new 485\nsquare foot detached\ngarage in the Old Towne\nHistoric District.","OTHER","Ani\nMnatsakan\nyan",null,null,null,"Pending",{"$nulls":4},"2023-10-31",null,"Israel\nSanchez","israel@sazbro.com","(714) 493-\n9013"]
["OTO","Culver","638 W Culver\nAve",92868,"Long Doan\nADU","429 square foot interior\nresidence conversion to\nADU and 389 square\nfoot garage conversion\nto JADU","ADU","Historic\nPreservatio\nn",null,"Pending",{"$nulls":5},"Comment\nLetter sent\n5-24-22",null,"2022-05-24","Bao Pham","bao@bdpeng.com"]
["OTO","Grand","231 N Grand\nSt",92866,"Smith\nResidence\nADU","Addition of 140 square\nfeet to an existing 660\nsquare foot garage for\nthe creation of an 800\nsquare foot accessory\ndwelling unit.","OTHER","Alvin Nuval",null,"Pending",{"$nulls":7},"2022-06-06","Carl Shields","carl@oldtowneplumbing.com","(714) 532-\n6274"]
["OTO","Grand","337 S Grand\nSt",92866,"Leaming\nADU","Request to permit an\nexisting ADU that was\ncreated without a\nbuilding permit.","ADU","Alvin Nuval",null,"Pending",{"$nulls":6},"2022-06-20","2022-06-21","Kim\nLeaming","kleaming5@gmail.com","(562) 787-\n6069"]
["OTO","Grand","447 S Grand\nSt",92866,"DeVore ADU","Convert existing\ndetached garage and\naddition to create 749\nsquare foot ADU with\ntwo bedrooms and two\nbathrooms in the Old\nTowne Historic District.","ADU","Ani\nMnatsakan\nyan",null,"Pending",{"$nulls":6},"2023-10-19",null,"Rolly\nDeVore","rollydv@aol.com","(949) 250-\n9254"]
["OTO","La Veta","617 W La\nVeta Ave",92868,"HomeAid\nADU","HomeAid ADU project\nto provide shelter for\nfamilies and seniors in\nneed. City of Orange\nowns property","ADU","Ani\nMnatsakan\nyan",null,null,"Pending",{"$nulls":5},"2022-11-02",null,"Yvette\nAhlstrom","yvette@homeaidoc.org","(949) 301-\n9896"]
["OTO","La Veta","625 W La\nVeta Ave",92868,"HomeAid\nADU","HomeAid ADU project\nto provide shelter for\nfamilies and seniors in\nneed. City of Orange\nowns property","ADU","Ani\nMnatsakan\nyan",null,null,"Pending",{"$nulls":5},"2022-11-02",null,"Yvette\nAhlstrom","yvette@homeaidoc.org","(949) 301-\n9896"]
["OTO","La Veta","637 W La\nVeta Ave",92868,"HomeAid\nADU","HomeAid ADU project\nto provide shelter for\nfamilies and seniors in\nneed. City of Orange\nowns property","ADU","Ani\nMnatsakan\nyan",null,null,"Pending",{"$nulls":5},"2022-11-02",null,"Yvette\nAhlstrom","yvette@homeaidoc.org","(949) 301-\n9896"]
["OTO","La Veta","830 E La Veta\nAve",92866,"Meyer ADU","A proposal to add 126\nsquare feet to existing\n622 square foot\nattached garage and\nconvert to 748 square\nfoot ADU for existing\nduplex.","ADU","Vidal F.\nMárquez",{"$nulls":7},"Withdrawn\n7/13/2023","2023-06-02","2023-07-13","Paula Meyer",null,"(949) 697-\n1156"]
["OTO","La Veta","830 E La Veta\nAve",92866,"Meyer ADU","Covert existing 622\nsquare foot garage and\nadd 126 square feet for\na 748 square foot\nattached ADU.","ADU","Amber\nGregg",null,"Pending",{"$nulls":5},"Incomplete\nLetter\nprovided\n7/24/23",null,null,"Paula Meyer",null,"(949) 697-\n1156"]
["OTO","Lemon","345 N Lemon\nSt",92866,"Chapman\nConversion","A request to convert a\nresidential structure to\na commercial office use.","OTHER","Ryan\nAgbayani",{"$nulls":8},"2023-06-02",null,"Bob\nThornton","rtainc7@yahoo.com","(949) 650-\n9876"]
["OTO","Lemon","493 N Lemon\nSt",92866,"Yimlamai\nADU","New 749 square foot\ndetached ADU with two\nbedrooms and two\nbathrooms in the Old\nTowne Historic District.","ADU","Ani\nMnatsakan\nyan",null,"Pending",{"$nulls":6},"2023-11-29",null,"Samlee\nYimlamai","syimlamai@gmail.com","(818) 267-\n7693"]
["OTO","Maple","623 E Maple\nAve",92866,"Maple Ave\nUnit\nRemodel","Remodel of an existing\nunit including building\nheight increase and\nrelocation of entry area.","OTHER","Ani\nMnatsakan\nyan",null,null,null,"Pending",{"$nulls":4},"2023-01-31",null,"Ming Huo","hm9808@gmail.com","(626) 500-\n5977"]
["OTO","Orange","585 N Orange\nSt",92867,"Karimpour\nADU","New 771 square foot\ndetached ADU with two\nbedrooms and one\nbathroom.","ADU","Amber\nGregg",null,"Pending",{"$nulls":6},"2023-08-29",null,"Dora\nAmesquitta","metrodesignco@yahoo.com","(562) 824-\n5522"]
["OTO","Palm","709 W Palm\nAve",92868,"Meyer ADU","New 649 square foot\nattached ADU in the Old\nTowne Historic District.","ADU","Ani\nMnatsakan\nyan",null,"Pending",{"$nulls":6},"2023-06-02",null,"Paula Meyer",null,"(949) 697-\n1156"]
["OTO","Palm","732 E Palm\nAve",92866,"Sukeena\nResidence","Request for a front yard\nwall in the Old Towne\nHistoric District","OTHER","Historic\nPreservatio\nn",null,null,null,"Pending",null,null,null,"DRC 07-21-\n21 (cont.)",null,"2021-11-09","Gwen\nSukeena",null,"(949) 439-\n0505"]
["OTO","Palmyra","206 W\nPalmyra Ave",92866,"Wencel\nResidential\nAddition","Residential remodel\nincluding ashed roof\nexpansion at the rear\nand new detached shed","OTHER","Ani\nMnatsakan\nyan",null,null,null,"Pending",null,null,null,"Comment\nletter sent\n11/8/22","2022-10-12","2022-11-16","Ali Haddad","ali@prosperarch.com","(657) 223-\n6828"]
["OTO","Palmyra","230 E\nPalmyra Ave",92866,"Ledbetter\nAddition","Addition to an existing\nsingle story residence to\nexpand kitchen area by\n50 SF, add 86 SF second\nbathroom, and create a\nsecond story deck over\naddition with an attic\nspace for storage.","OTHER","Ani\nMnatsakan\nyan",null,null,null,"Pending",null,null,null,"DRC Date:\n11/1/23","2023-04-21",null,"Sheri\nLedbetter","sledbetter@socal.rr.com"]
["OTO","Palmyra","329 E\nPalmyra Ave",92866,"Yaghi ADU","Conver existing 408 SF\ngarage in an ADU and a\nnew 63 SF laundry\nroom.","ADU","Ani\nMnatsakan\nyan",null,"Pending",{"$nulls":6},"2023-04-25",null,"Shucri Ysghi","yaghi-engineers@live.com","(714) 997-\n9120"]
["OTO","Palmyra","504 E\nPalmyra Ave",92866,"Ramirez\nADU","A proposal to add 224\nsquare feet to an\nexisting 480 square foot\ndetached garage and\nconvert the existing\ngarage and proposed\naddition into a 704\nsquare foot detached\nADU with two\nbedrooms and one\nbathroom in the Historic\nDistrict.","ADU","Ani\nMnatsakan\nyan",null,"Pending",null,"Pending",{"$nulls":4},"2023-08-21",null,"Damian\nRamirez","damianusarmy@gmail.com","(714) 292-\n7224"]
["OTO","Palmyra","905 E\nPalmyra Ave",92866,"Nash ADU","Add an ADU attached to\nan existing \"barn\"\nstructure.","ADU","Vidal F.\nMárquez",null,"Approved",{"$nulls":4},"2022-11-22",null,"2022-08-02","2023-02-23","Bryan &\nLorie Nash","bryan@benashinc.com","(714) 747-\n1249"]
["OTO","Parker","316 N Parker\nSt",92868,"Cleland ADU","Convert existing 219\nsquare foot attached\ngarage and add 138\nsquare feet for a 357\nsquare foot ADU with\none bedroom and one\nbathroom.","ADU",null,null,"Pending",{"$nulls":7},"2023-11-08","Paula\nCleland","pmeyeresq@aol.com","(949) 697-\n1156"]
["OTO","Parker","354 N Parker",92868,"Kearl ADU","Covert existing garage\nand add 146 square feet\nfor a 554 square foot\nADU with two\nbedrooms and one\nbathroom. In addition,\nadd 11 square foot\nlaundry room to\nprimary residence.","ADU","Ani\nMnatsakan\nyan",null,"CDD",{"$nulls":6},"2023-11-02",null,"Jane Kearl","jkearl@wattieder.com","(949) 852-\n6705"]
["OTO","Pine","553 N Pine St",92867,"England\nADU","Remove anon-\npermitted structure and\nconvert an existing\ndetached garage to an\nADU and construct an\naddition onto the rear\nof the garage to create\na 750 square foot ADU.","ADU","Alvin Nuval",null,"Pending",{"$nulls":6},"2022-08-12","2022-08-15","Tom Aldrich","taldrich@dseainc.com"]
["OTO","Pixley","125 N Pixley\nSt",92868,"Reyes\nGarage","A proposal to remodel\nthe interior of a 918\nsquare foot single family\nresidence and construct\nnew 2-car garage in the\nOld Towne Historic\nDistrict.","OTHER","Ani\nMnatsakan\nyan",null,null,null,"Pending",{"$nulls":4},"2023-06-13",null,"Hipolito\nSerrano","facadesdesign151@gmail.com","(626) 922-\n0420"]
["OTO","Plaza","71 Plaza\nSquare",92866,"AT&T NSB\nSite\n\"CLL01157\"","A request to establish a\nrooftop stealth screen\nwireless facility in the\nOld Towne Historic\nDistrict","OTHER","Alvin Nuval","Pending",null,null,"Pending",{"$nulls":4},"2022-05-31","2022-05-31","Adrian Culici","adrian.culici@eukongroup.com","(949) 648-\n6995"]
["OTO","Shaffer","454 S Shaffer\nSt",92866,"Johnston\nGarage\nAddition","Demolition of existing\ngarage and construction\nof new garage","OTHER","Ani\nMnatsakan\nyan",null,null,null,"Pending",{"$nulls":4},"2023-05-03",null,"Matthew\nJohnston","matt@ovcbuild.com","(949) 433-\n7477"]
["OTO","Sycamore","610 E\nSycamore Ave",92866,"Meyer ADU","Convert existing\nattached garage into\n610 square foot ADU\nwith two bedrooms and\none bathroom in the\nOld Towne Historic\nDistrict.","ADU","Amber\nGregg",null,"Pending",{"$nulls":6},"2023-10-12",null,"Paula Meyer","pmeyeresa@aol.com","(949) 697-\n1156"]
["OTO","University","1 University\nDr",92866,"Chapman\nUniversity\nSpecific Plan\nAmendment\n#7","A proposal to update\nthe Chapman University\nSpecific Plan.","OTHER","Anna\nPehoushek","Pending",null,null,"Pending","Pending","Pending",null,"Awaiting\nsubmittal\nof draft EIR\nfor review",null,null,"John\nMoreland","jmoreland@ktgy.com"]
["OTO","Washington","818 E\nWashington\nAve",92866,"Bedford\nADU","Legalize a detached\ngarage conversion into a\n275 SF studio ADU.","ADU","Ani\nMnatsakan\nyan",null,"Pending",{"$nulls":6},"2023-12-15",null,"Tim\nLamberth","tdi_cab@pacbell.net","(714) 328-\n4835"]
["OTO","Waverly","216 N\nWaverly St",92866,"Peterkin\nADU","Convert portion of\nexisting accessory\nstructure and add 299\nsquare feet for an 841\nsquare foot ADU in the\nOld Towne Historic\nDistrict.","ADU","Amber\nGregg",null,"Pending",{"$nulls":6},"2023-10-12",null,"Steve\nPeterkin","stevepeterkin@gmail.com","(714) 951-\n1412"]